bitfinex/quotes_BTCUSD_20241206
["timestamp","ask_amount","ask_price","bid_price","bid_amount"]
[1733508315716,0.10126638,101070.0,101060.0,0.07916]
[1733508315913,0.10002951,101070.0,101060.0,0.07916]
[1733508316548,0.10002951,101070.0,101060.0,0.08014944]
[1733508316846,0.10002951,101070.0,101060.0,0.07916]
[1733508317403,0.10002951,101070.0,101060.0,0.0801494]
[1733508317613,0.10002951,101070.0,101060.0,0.2301494]
[1733508317824,0.0822,101090.0,101060.0,0.22916]
[1733508318042,0.08343675,101090.0,101080.0,0.079145]
[1733508318277,0.67917725,101090.0,101060.0,0.158311]
[1733508318486,0.10126627,101080.0,101060.0,0.237467]
[1733508318721,0.29913227,101080.0,101060.0,0.158311]
[1733508319146,0.29913227,101080.0,101060.0,0.079155]
[1733508319354,0.34913227,101080.0,101060.0,0.079155]
[1733508319572,0.15002951,101070.0,101050.0,0.079162]
[1733508319787,0.00123696,101060.0,101050.0,0.158326]
[1733508319997,0.34917847,101060.0,101040.0,0.0008681]
[1733508320225,0.34917847,101060.0,101040.0,0.1592161]
[1733508320226,0.10002951,101050.0,101040.0,0.1592161]
[1733508320428,0.10126662,101050.0,101040.0,0.1592161]
[1733508321058,0.10126662,101050.0,101040.0,0.15979509]
[1733508321240,0.10002951,101050.0,101040.0,0.15979509]
[1733508321702,0.10002951,101050.0,101040.0,0.16078475]
[1733508321934,0.10002951,101050.0,101040.0,0.15979509]
[1733508322136,0.10002951,101050.0,101040.0,0.0009896]
[1733508322349,0.10002951,101050.0,101030.0,0.229184]
[1733508322569,0.10202951,101050.0,101030.0,0.229184]
[1733508322775,0.10202951,101050.0,101030.0,0.308362]
[1733508322981,0.10002951,101050.0,101030.0,0.38754]
[1733508323193,0.10102951,101050.0,101030.0,0.38754]
[1733508323408,0.10002951,101050.0,101040.0,0.079176]
[1733508323814,0.10002951,101050.0,101040.0,0.0800441]
[1733508324250,0.10002951,101050.0,101040.0,0.0810337]
[1733508324517,0.10002951,101050.0,101040.0,0.0800441]
[1733508325158,0.10102951,101050.0,101040.0,0.0800441]
[1733508325382,0.10102951,101050.0,101040.0,0.08103365]
[1733508325592,0.001,101050.0,101040.0,0.53103365]
[1733508325818,0.001,101050.0,101040.0,0.2300441]
[1733508326437,0.0017362,101070.0,101060.0,0.07916]
[1733508326641,0.10176571,101070.0,101060.0,0.07916]
[1733508326860,0.1023447,101070.0,101060.0,0.07916]
[1733508327459,0.1023447,101070.0,101060.0,0.08014938]
[1733508327929,0.1023447,101070.0,101060.0,0.07916]
[1733508328575,0.00231519,101070.0,101060.0,0.08014936]
[1733508328790,0.00231519,101070.0,101060.0,0.31304936]
[1733508328996,0.00331519,101070.0,101060.0,0.61206]
[1733508329415,0.00331519,101070.0,101060.0,0.81683]
[1733508329621,1.9e-07,101070.0,101060.0,0.743552]
[1733508329803,1.9e-07,101070.0,101060.0,0.61206]
[1733508330222,1.9e-07,101070.0,101060.0,0.62618733]
[1733508330653,1.9e-07,101070.0,101060.0,0.33018733]
[1733508331081,0.05123701,101100.0,101060.0,0.33018733]
[1733508331295,0.05123701,101100.0,101090.0,0.079137]
[1733508331296,0.15020369,101100.0,101090.0,0.079137]
[1733508331503,0.15020369,101100.0,101090.0,0.0801261]
[1733508331944,0.05017418,101100.0,101090.0,0.0801261]
[1733508332159,0.05017418,101100.0,101090.0,0.08332675]
[1733508332609,0.05317418,101100.0,101090.0,0.08332675]
[1733508333301,0.05317418,101100.0,101090.0,0.08233765]
[1733508333519,0.05317418,101100.0,101090.0,0.08332672]
[1733508333927,0.05317418,101100.0,101090.0,0.23332672]
[1733508334153,0.05317418,101100.0,101090.0,0.23233765]
[1733508334631,0.05017418,101100.0,101090.0,0.23233765]
[1733508335104,0.05017418,101100.0,101090.0,0.61033765]
[1733508335105,0.05117418,101100.0,101090.0,0.61033765]
[1733508335559,0.05317418,101100.0,101090.0,0.61033765]
[1733508335957,0.05117418,101100.0,101090.0,0.61033765]
[1733508336203,0.05017418,101100.0,101090.0,0.61033765]
[1733508336413,0.05017418,101100.0,101090.0,0.61233765]
[1733508336619,0.05017418,101100.0,101090.0,0.53833765]
[1733508336833,0.05017418,101100.0,101090.0,0.55844668]
[1733508337944,0.05017418,101100.0,101090.0,0.58144668]
[1733508338149,1.8e-07,101100.0,101090.0,0.74238468]
[1733508338375,1.8e-07,101100.0,101090.0,0.58144668]
[1733508338807,1.8e-07,101100.0,101090.0,0.71053357]
[1733508339004,5.8e-07,101110.0,101100.0,0.828829]
[1733508339219,5.8e-07,101110.0,101100.0,0.70215851]
[1733508339426,5.8e-07,101110.0,101100.0,0.70342649]
[1733508339688,5.8e-07,101110.0,101100.0,0.95801615]
[1733508339910,5.8e-07,101110.0,101100.0,1.00801615]
[1733508340344,1.8e-07,101120.0,101110.0,0.491565]
[1733508340570,1.8e-07,101120.0,101110.0,0.57926602]
[1733508340786,0.001737,101140.0,101130.0,0.219217]
[1733508341001,0.00191048,101140.0,101130.0,0.219217]
[1733508341431,7.5e-07,101150.0,101140.0,0.3]
[1733508341638,7.5e-07,101150.0,101140.0,0.57338887]
[1733508341848,7.5e-07,101150.0,101140.0,0.64259887]
[1733508342277,7.5e-07,101160.0,101150.0,0.473]
[1733508342534,7.5e-07,101160.0,101150.0,0.15]
[1733508342745,0.10003026,101160.0,101150.0,0.069204]
[1733508342990,0.10003026,101160.0,101140.0,0.138412]
[1733508343223,7.5e-07,101160.0,101150.0,0.07019256]
[1733508343919,0.00200075,101160.0,101150.0,0.07019236]
[1733508344368,0.00200075,101160.0,101150.0,0.22019236]
[1733508344587,0.00200075,101160.0,101150.0,0.069204]
[1733508344588,0.10203026,101160.0,101150.0,0.069204]
[1733508345072,0.10703026,101160.0,101150.0,0.069204]
[1733508346171,0.10699026,101160.0,101150.0,0.069204]
[1733508346886,0.18959026,101160.0,101140.0,0.069205]
[1733508347118,0.10002951,101150.0,101140.0,0.069205]
[1733508347380,0.29775651,101150.0,101130.0,0.207642]
[1733508347626,0.00123595,101140.0,101130.0,0.13259948]
[1733508347864,0.10126546,101140.0,101130.0,0.13259948]
[1733508348831,0.10126546,101140.0,101130.0,0.13359948]
[1733508349081,0.10126546,101140.0,101130.0,0.06438548]
[1733508349325,0.45686546,101140.0,101130.0,0.00317348]
[1733508349630,0.55337451,101140.0,101130.0,0.00317348]
[1733508349891,0.40562951,101140.0,101130.0,0.00317348]
[1733508350081,0.40562951,101140.0,101130.0,0.00217348]
[1733508350082,0.60337451,101140.0,101130.0,0.00217348]
[1733508350330,0.65337451,101140.0,101130.0,0.00217348]
[1733508350526,0.65337451,101140.0,101130.0,0.00017348]
[1733508350758,0.23262951,101140.0,101130.0,0.06939048]
[1733508350993,0.24162951,101140.0,101130.0,0.00117348]
[1733508351227,0.23262951,101140.0,101130.0,0.06939048]
[1733508351445,0.24162951,101140.0,101130.0,0.07039048]
[1733508351922,0.23462951,101140.0,101130.0,0.06939048]
[1733508352166,0.24162951,101140.0,101130.0,0.071306]
[1733508352410,0.43737451,101140.0,101130.0,0.002089]
[1733508352650,0.23962951,101140.0,101130.0,0.071306]
[1733508352905,0.10902951,101140.0,101130.0,0.071306]
[1733508355354,0.11026555,101140.0,101130.0,0.071306]
[1733508355999,0.61191055,101140.0,101130.0,0.002089]
[1733508356246,0.66067451,101140.0,101130.0,0.002089]
[1733508356453,0.61067451,101140.0,101130.0,0.002089]
[1733508356866,0.65867451,101140.0,101130.0,0.002089]
[1733508357076,0.65167451,101140.0,101130.0,0.001089]
[1733508357289,0.55167451,101140.0,101130.0,0.001089]
[1733508357502,0.56067451,101140.0,101130.0,0.002089]
[1733508357707,0.56067451,101140.0,101130.0,0.001089]
[1733508358124,0.51967451,101140.0,101130.0,0.002089]
[1733508358330,0.57467451,101140.0,101130.0,0.002089]
[1733508358774,0.52467451,101140.0,101130.0,0.002089]
[1733508358997,0.51967451,101140.0,101130.0,0.002089]
[1733508359426,0.52467451,101140.0,101130.0,0.002089]
[1733508360342,0.52467451,101140.0,101130.0,0.0029565]
[1733508361640,0.67467451,101140.0,101130.0,0.0029565]
[1733508361851,0.62467451,101140.0,101130.0,0.0029565]
[1733508362926,0.297823,101100.0,101090.0,0.001508]
[1733508363138,0.20002951,101100.0,101090.0,0.06941858]
[1733508363349,0.39785251,101100.0,101090.0,0.06941858]
[1733508363560,0.10002951,101100.0,101090.0,0.06941858]
[1733508364227,0.10702951,101100.0,101090.0,0.07041858]
[1733508364659,0.007,101100.0,101090.0,0.3038077]
[1733508364880,0.00123621,101130.0,101120.0,0.069224]
[1733508365118,0.10002951,101130.0,101120.0,0.069224]
[1733508365781,0.10002951,101130.0,101120.0,0.068715]
[1733508366197,0.10102951,101130.0,101120.0,0.068715]
[1733508366855,0.10102951,101130.0,101120.0,0.07113969]
[1733508367478,0.10402951,101130.0,101120.0,0.07113969]
[1733508368166,0.10102951,101130.0,101120.0,0.07212856]
[1733508368389,0.10002951,101130.0,101120.0,0.07212856]
[1733508368620,0.00297176,101160.0,101150.0,0.069204]
[1733508368848,0.10300127,101160.0,101150.0,0.069204]
[1733508370011,0.30088069,101160.0,101140.0,0.207623]
[1733508370177,0.00314518,101160.0,101150.0,0.069204]
[1733508370394,0.10317469,101160.0,101150.0,0.07202279]
[1733508370611,0.10617469,101160.0,101150.0,0.07256081]
[1733508370807,0.10317469,101160.0,101150.0,0.07256081]
[1733508371223,0.18317469,101160.0,101150.0,0.00335681]
[1733508371437,0.52488069,101160.0,101150.0,0.00335681]
[1733508371646,0.52364493,101160.0,101150.0,0.00335681]
[1733508371863,0.53064493,101160.0,101150.0,0.00335681]
[1733508372319,0.52964493,101160.0,101150.0,0.00335681]
[1733508372534,0.53264493,101160.0,101150.0,0.00335681]
[1733508373007,0.30493893,101160.0,101150.0,0.00335681]
[1733508373242,0.10493893,101160.0,101150.0,0.07256081]
[1733508373481,0.10617473,101160.0,101150.0,0.07256081]
[1733508373925,0.10317473,101160.0,101150.0,0.07256081]
[1733508374279,0.10617473,101160.0,101150.0,0.07256081]
[1733508374503,0.10793893,101160.0,101150.0,0.07256081]
[1733508374710,0.10917468,101160.0,101150.0,0.07256081]
[1733508374921,0.10617468,101160.0,101150.0,0.07256081]
[1733508375362,0.10717468,101160.0,101150.0,0.07256081]
[1733508375800,0.10717468,101160.0,101150.0,0.00335681]
[1733508376206,0.10717468,101160.0,101150.0,0.07256081]
[1733508376829,0.30488068,101160.0,101150.0,0.00335681]
[1733508377044,0.40364493,101160.0,101150.0,0.00335681]
[1733508378401,0.10593893,101160.0,101150.0,0.00335681]
[1733508378605,0.10717474,101160.0,101150.0,0.00335681]
[1733508378814,0.10717474,101160.0,101150.0,0.07256081]
[1733508379450,0.00590942,101160.0,101150.0,0.27076081]
[1733508379873,4.2e-07,101160.0,101150.0,0.27076081]
[1733508380077,4.2e-07,101160.0,101150.0,0.52434227]
[1733508380284,0.0017868,101170.0,101160.0,0.15]
[1733508380491,0.0017868,101170.0,101160.0,0.46677846]
[1733508380712,0.0017868,101170.0,101160.0,0.61968139]
[1733508380911,0.0017868,101170.0,101160.0,0.84592143]
[1733508381122,0.10181631,101170.0,101160.0,0.47139258]
[1733508381331,0.10181631,101170.0,101160.0,0.33039258]
[1733508381558,0.10281631,101170.0,101150.0,0.5240104]
[1733508381776,0.10002951,101160.0,101150.0,0.20009134]
[1733508382030,0.10002951,101160.0,101150.0,0.20127692]
[1733508382247,0.10002951,101160.0,101150.0,0.1896598]
[1733508383727,0.10089851,101160.0,101150.0,0.1896598]
[1733508384340,0.10089851,101160.0,101150.0,0.1414598]
[1733508384702,0.10089851,101160.0,101150.0,0.29244838]
[1733508384703,0.000869,101160.0,101150.0,0.29244838]
[1733508384909,0.000869,101160.0,101150.0,0.3400598]
[1733508385205,0.000869,101160.0,101150.0,0.6400598]
[1733508385449,0.000869,101160.0,101150.0,1.26621819]
[1733508385690,0.000869,101160.0,101150.0,2.06326819]
[1733508385984,0.000869,101160.0,101150.0,2.0932916]
[1733508386176,0.000869,101160.0,101150.0,2.0442916]
[1733508386338,0.000869,101160.0,101150.0,1.62088119]
[1733508386550,0.000869,101160.0,101150.0,1.6499046]
[1733508386951,0.001869,101160.0,101150.0,1.6559046]
[1733508387184,0.001869,101160.0,101150.0,1.07520821]
[1733508387383,0.001869,101160.0,101150.0,1.12940431]
[1733508387596,0.002869,101160.0,101150.0,0.97919048]
[1733508387818,0.002869,101160.0,101150.0,0.82919048]
[1733508388019,0.002869,101160.0,101150.0,0.5747598]
[1733508388232,0.10289851,101160.0,101150.0,0.2261598]
[1733508388457,0.002869,101160.0,101150.0,0.2261598]
[1733508389070,0.002869,101160.0,101150.0,0.48059048]
[1733508389273,0.002869,101160.0,101150.0,0.2261598]
[1733508389469,0.002869,101160.0,101150.0,0.3761598]
[1733508389679,0.10089851,101160.0,101150.0,0.2201598]
[1733508390100,0.001869,101160.0,101150.0,0.2221598]
[1733508390518,0.001869,101160.0,101150.0,0.2201598]
[1733508390728,0.001869,101160.0,101150.0,0.1454598]
[1733508391530,0.10189851,101160.0,101150.0,0.1454598]
[1733508392241,0.001869,101160.0,101150.0,0.29644832]
[1733508392453,0.001869,101160.0,101150.0,0.2954598]
[1733508393570,0.001869,101160.0,101150.0,1.35670531]
[1733508393835,0.001869,101160.0,101150.0,0.82488931]
[1733508394683,0.001869,101160.0,101150.0,0.9792719]
[1733508395104,0.001869,101160.0,101150.0,0.97989027]
[1733508396429,0.001869,101160.0,101150.0,0.97989027]
[1733508396656,0.001869,101160.0,101150.0,0.67989027]
[1733508397362,0.001869,101160.0,101150.0,0.42547817]
[1733508399439,0.001869,101160.0,101150.0,0.16678517]
[1733508399566,0.001869,101160.0,101150.0,0.20335561]
[1733508399798,0.001869,101160.0,101150.0,0.2023673]
[1733508400019,1e-06,101160.0,101150.0,0.84602381]
[1733508400258,1e-06,101160.0,101150.0,0.82234381]
[1733508400498,1e-06,101160.0,101150.0,0.85164581]
[1733508400696,1e-06,101160.0,101150.0,0.90164581]
[1733508400926,0.0017478,101170.0,101160.0,0.069197]
[1733508401243,8e-07,101170.0,101160.0,0.50947565]
[1733508401463,8e-07,101170.0,101160.0,0.31922651]
[1733508402086,8e-07,101170.0,101160.0,0.071197]
[1733508402300,8e-07,101170.0,101160.0,0.07218531]
[1733508402508,0.0010008,101170.0,101160.0,0.07218531]
[1733508403169,0.0010008,101170.0,101160.0,0.07342087]
[1733508404107,0.10103031,101170.0,101160.0,0.07342087]
[1733508404360,0.10103031,101170.0,101160.0,0.07243256]
[1733508404769,0.10103031,101170.0,101160.0,0.07342093]
[1733508406001,0.0010008,101170.0,101160.0,0.15272093]
[1733508406465,0.0010008,101170.0,101160.0,0.30272093]
[1733508406683,0.0010008,101170.0,101160.0,0.30173256]
[1733508406814,0.0010008,101170.0,101160.0,0.40176207]
[1733508407221,8e-07,101170.0,101160.0,0.46926631]
[1733508407675,8e-07,101170.0,101160.0,0.81926631]
[1733508408113,6e-07,101180.0,101170.0,0.15]
[1733508408355,6e-07,101180.0,101170.0,0.32020755]
[1733508408611,6e-07,101180.0,101170.0,0.32261865]
[1733508409577,6e-07,101180.0,101170.0,0.57675556]
[1733508410262,6e-07,101180.0,101170.0,0.62675556]
[1733508410642,6e-07,101180.0,101170.0,0.77672605]
[1733508410877,6e-07,101180.0,101170.0,0.77972605]
[1733508411267,0.001737,101190.0,101180.0,0.069183]
[1733508411521,0.001737,101190.0,101180.0,0.47451084]
[1733508411767,0.001737,101190.0,101180.0,0.47352276]
[1733508411970,0.001737,101190.0,101180.0,0.47612848]
[1733508412613,0.003737,101190.0,101180.0,0.15260572]
[1733508412826,0.003737,101190.0,101180.0,0.22277681]
[1733508413032,0.003737,101190.0,101180.0,0.21578872]
[1733508413950,0.10376651,101190.0,101180.0,0.07178872]
[1733508414358,0.10500185,101190.0,101180.0,0.07178872]
[1733508414576,0.10376651,101190.0,101180.0,0.07178872]
[1733508414783,0.10500185,101190.0,101180.0,0.07178872]
[1733508415217,0.10376651,101190.0,101180.0,0.07178872]
[1733508416076,0.08157185,101200.0,101190.0,0.069176]
[1733508416391,0.18160136,101200.0,101190.0,0.069176]
[1733508416584,0.18036611,101200.0,101190.0,0.07074979]
[1733508416984,0.18160132,101200.0,101190.0,0.07074979]
[1733508417221,0.18036611,101200.0,101190.0,0.07074979]
[1733508417430,0.18094463,101200.0,101190.0,0.07074979]
[1733508418090,0.18494463,101200.0,101190.0,0.07074979]
[1733508418301,0.18694463,101200.0,101190.0,0.07074979]
[1733508418729,0.18817984,101200.0,101190.0,0.07074979]
[1733508419153,0.18694463,101200.0,101190.0,0.07074979]
[1733508419361,0.18813984,101200.0,101190.0,0.07074979]
[1733508419989,0.18813991,101200.0,101190.0,0.07074979]
[1733508421861,0.18690463,101200.0,101190.0,0.07074979]
[1733508422070,0.04607846,101230.0,101210.0,0.069157]
[1733508422312,0.00036281,101230.0,101220.0,0.069156]
[1733508422524,0.00036281,101230.0,101220.0,0.07228181]
[1733508422741,0.00036281,101230.0,101220.0,0.22228181]
[1733508422953,0.00036281,101230.0,101220.0,0.2212939]
[1733508423192,0.00036281,101230.0,101220.0,0.47615013]
[1733508423903,0.00036281,101230.0,101220.0,0.0712939]
[1733508424131,0.00036281,101230.0,101220.0,0.07228166]
[1733508424344,0.00036281,101230.0,101220.0,0.0712939]
[1733508424564,0.10039232,101230.0,101220.0,0.0061379]
[1733508424782,0.39796132,101230.0,101220.0,0.0081379]
[1733508424996,0.47626132,101230.0,101220.0,0.0081379]
[1733508425253,0.57137666,101230.0,101220.0,0.0081379]
[1733508425466,0.47156132,101230.0,101220.0,0.0081379]
[1733508425687,0.58956132,101230.0,101220.0,0.0081379]
[1733508426321,0.58956132,101230.0,101220.0,0.0061379]
[1733508426812,0.59256132,101230.0,101220.0,0.0021379]
[1733508427018,0.59756132,101230.0,101220.0,0.0027919]
[1733508427224,0.59456132,101230.0,101220.0,0.000654]
[1733508427429,0.59456132,101230.0,101220.0,0.00379726]
[1733508427637,0.60356132,101230.0,101220.0,0.002]
[1733508428089,1.50854171,101240.0,101230.0,0.4279]
[1733508428320,1.48898994,101240.0,101230.0,0.61905192]
[1733508428533,1.48898994,101240.0,101230.0,0.45087864]
[1733508428754,1.48898994,101240.0,101230.0,0.32417864]
[1733508430326,1.48898994,101240.0,101230.0,0.32617864]
[1733508430327,1.49798994,101240.0,101230.0,0.32617864]
[1733508430544,1.48898994,101240.0,101230.0,0.32517864]
[1733508430747,1.48898994,101240.0,101230.0,0.33900511]
[1733508430965,1.48898994,101240.0,101230.0,0.34000511]
[1733508431392,1.48898994,101240.0,101230.0,0.81303462]
[1733508431602,1.48898994,101240.0,101230.0,1.00823462]
[1733508432052,1.48898994,101240.0,101230.0,1.13462743]
[1733508432461,1.48898994,101240.0,101230.0,1.30535343]
[1733508432871,1.48898994,101240.0,101230.0,1.13662743]
[1733508433084,1.48985804,101240.0,101230.0,1.10762743]
[1733508433296,1.48985804,101240.0,101230.0,1.10562743]
[1733508433503,1.49085804,101240.0,101230.0,1.11462743]
[1733508433727,1.49085804,101240.0,101230.0,1.11962743]
[1733508434832,1.49085804,101240.0,101230.0,1.1397751]
[1733508435998,1.49085804,101240.0,101230.0,2.2683771]
[1733508435999,1.22500337,101240.0,101230.0,2.2683771]
[1733508436220,0.00944403,101290.0,101230.0,2.2683771]
[1733508436221,0.00414499,101340.0,101320.0,0.35]
[1733508436479,0.00146635,101340.0,101320.0,0.069088]
[1733508436698,0.00146635,101340.0,101320.0,0.07007465]
[1733508436919,0.00146635,101340.0,101320.0,0.069088]
[1733508437132,0.00146635,101340.0,101320.0,0.07007465]
[1733508437573,0.00146635,101340.0,101320.0,0.17010416]
[1733508437807,0.00178131,101330.0,101320.0,0.39310416]
[1733508438033,0.00178131,101330.0,101320.0,0.39211751]
[1733508438262,0.00278131,101330.0,101320.0,0.40111751]
[1733508438516,0.00278131,101330.0,101320.0,0.37811751]
[1733508438730,0.00278131,101330.0,101320.0,0.24052722]
[1733508439439,0.00278131,101330.0,101320.0,0.40452722]
[1733508439647,0.00178131,101330.0,101320.0,0.41052722]
[1733508439852,0.00178131,101330.0,101320.0,0.41952722]
[1733508440903,0.00178131,101330.0,101320.0,0.39652722]
[1733508441109,0.00178131,101330.0,101320.0,0.34652722]
[1733508441110,0.00174131,101330.0,101320.0,0.34652722]
[1733508441314,0.00174131,101330.0,101320.0,0.39652722]
[1733508442548,55.52873661,101350.0,101340.0,0.569074]
[1733508442549,51.33133028,101350.0,101340.0,0.569074]
[1733508442761,49.99085529,101350.0,101340.0,4.92608749]
[1733508442977,49.80169209,101350.0,101340.0,4.28494959]
[1733508443188,49.80169209,101350.0,101340.0,1.51815259]
[1733508443189,48.98813442,101350.0,101340.0,1.51815259]
[1733508443405,48.98813442,101350.0,101340.0,1.48908049]
[1733508443406,48.82318714,101350.0,101340.0,1.48908049]
[1733508443622,48.69688714,101350.0,101340.0,1.54768376]
[1733508443833,48.68688715,101350.0,101340.0,1.61904237]
[1733508444050,48.19393241,101350.0,101340.0,1.64625113]
[1733508444268,48.19152624,101350.0,101340.0,1.65015711]
[1733508444490,47.6985715,101350.0,101340.0,1.53819523]
[1733508444706,47.16112676,101350.0,101340.0,1.51998647]
[1733508444931,47.16112676,101350.0,101340.0,1.61904237]
[1733508445146,47.16112676,101350.0,101340.0,1.27277849]
[1733508445381,47.16112676,101350.0,101340.0,0.76735849]
[1733508446037,47.16112676,101350.0,101340.0,0.84747649]
[1733508446243,47.16112676,101350.0,101340.0,0.60480249]
[1733508446448,47.16112676,101350.0,101340.0,0.88075549]
[1733508446670,47.16112676,101350.0,101340.0,0.62670215]
[1733508446944,47.16112676,101350.0,101340.0,0.81540215]
[1733508447155,47.16112676,101350.0,101340.0,0.82040215]
[1733508447380,47.00325476,101350.0,101340.0,0.81830215]
[1733508447605,46.96378676,101350.0,101340.0,0.93106922]
[1733508448068,46.96378676,101350.0,101340.0,0.95483957]
[1733508448282,46.96378676,101350.0,101340.0,0.94583957]
[1733508448691,46.96378676,101350.0,101340.0,0.89998657]
[1733508448865,46.96378676,101350.0,101340.0,0.93893957]
[1733508449101,46.96378676,101350.0,101340.0,0.93393957]
[1733508449300,46.83241676,101350.0,101340.0,1.94582899]
[1733508449472,46.63910694,101350.0,101340.0,1.94582899]
[1733508449707,46.10084707,101350.0,101340.0,2.44582899]
[1733508449915,46.08924707,101350.0,101340.0,2.90232899]
[1733508450126,46.08054707,101350.0,101340.0,2.55162899]
[1733508450335,46.05856942,101350.0,101340.0,7.6494642]
[1733508450539,45.41949942,101350.0,101340.0,7.6404642]
[1733508450667,45.41949942,101350.0,101340.0,7.6136672]
[1733508450880,45.39632142,101350.0,101340.0,7.62821279]
[1733508451082,43.35480676,101350.0,101340.0,7.63721279]
[1733508451310,39.65973751,101350.0,101340.0,5.3194643]
[1733508451519,39.51436562,101350.0,101340.0,5.0593635]
[1733508451739,39.43775133,101350.0,101340.0,5.14972439]
[1733508451982,39.3689133,101350.0,101340.0,5.14972439]
[1733508452142,39.24873094,101350.0,101340.0,4.68472439]
[1733508452356,39.13689251,101350.0,101340.0,4.69372439]
[1733508452503,39.05197689,101350.0,101340.0,4.69372439]
[1733508452698,39.03207589,101350.0,101340.0,4.68472439]
[1733508452904,39.03207589,101350.0,101340.0,2.64676139]
[1733508453101,39.03207589,101350.0,101340.0,2.65576139]
[1733508453311,38.68871145,101350.0,101340.0,5.2315778]
[1733508453523,38.61148421,101350.0,101340.0,2.75078159]
[1733508453730,36.12893377,101350.0,101340.0,2.75078159]
[1733508453934,36.12893377,101350.0,101340.0,2.64668159]
[1733508453935,35.2179174,101350.0,101340.0,2.64668159]
[1733508454145,33.22779326,101350.0,101340.0,2.64668159]
[1733508454342,32.19072969,101350.0,101340.0,2.90516334]
[1733508454603,31.46791827,101350.0,101340.0,3.00926334]
[1733508454831,31.44047206,101350.0,101340.0,3.00926334]
[1733508455028,29.79021646,101350.0,101340.0,3.00026334]
[1733508455228,29.79021646,101350.0,101340.0,5.29985955]
[1733508455426,28.50891374,101350.0,101340.0,3.78856334]
[1733508455642,28.11471028,101350.0,101340.0,3.79588319]
[1733508455891,27.24727782,101350.0,101340.0,3.77056334]
[1733508456098,26.43253619,101350.0,101340.0,3.88366334]
[1733508456304,26.43253619,101350.0,101340.0,3.78856334]
[1733508456511,26.35360019,101350.0,101340.0,3.77956334]
[1733508456680,26.33386619,101350.0,101340.0,3.92956334]
[1733508456877,26.33386619,101350.0,101340.0,3.93129734]
[1733508457282,26.31413219,101350.0,101340.0,3.94929734]
[1733508457481,26.31413219,101350.0,101340.0,8.20762734]
[1733508457482,26.23519619,101350.0,101340.0,8.20762734]
[1733508457688,26.23519619,101350.0,101340.0,8.07388634]
[1733508457866,26.23519619,101350.0,101340.0,7.96717238]
[1733508458285,26.23056266,101350.0,101340.0,8.54286797]
[1733508458457,26.13189266,101350.0,101340.0,3.50888854]
[1733508458658,26.13189266,101350.0,101340.0,3.14588854]
[1733508458887,26.13189266,101350.0,101340.0,2.65488854]
[1733508459081,26.13189266,101350.0,101340.0,2.63688854]
[1733508459548,26.03322266,101350.0,101340.0,2.33688854]
[1733508459753,26.03322266,101350.0,101340.0,2.49588854]
[1733508459954,26.03322266,101350.0,101340.0,2.4807045]
[1733508460086,26.03322266,101350.0,101340.0,2.49267063]
[1733508460288,25.99375466,101350.0,101340.0,2.46993463]
[1733508460486,25.93455266,101350.0,101340.0,2.46993463]
[1733508460745,25.93455266,101350.0,101340.0,2.47893463]
[1733508461169,25.93455266,101350.0,101340.0,2.18493114]
[1733508461386,25.87535066,101350.0,101340.0,1.94377492]
[1733508461595,25.76454927,101350.0,101340.0,1.94377492]
[1733508462473,25.74481527,101350.0,101340.0,1.93477492]
[1733508462678,25.74481527,101350.0,101340.0,1.95777492]
[1733508462877,25.66587927,101350.0,101340.0,1.88477492]
[1733508463199,25.61661334,101350.0,101340.0,1.88477492]
[1733508463382,25.59687934,101350.0,101340.0,1.92577492]
[1733508463580,25.59687934,101350.0,101340.0,2.14677492]
[1733508463798,25.51794334,101350.0,101340.0,2.14677492]
[1733508464365,25.49820934,101350.0,101340.0,2.16977492]
[1733508464604,25.43900734,101350.0,101340.0,2.16977492]
[1733508464768,25.41927334,101350.0,101340.0,2.16977492]
[1733508465362,25.41927334,101350.0,101340.0,2.14677492]
[1733508465564,25.41927334,101350.0,101340.0,1.04415917]
[1733508465928,25.41927334,101350.0,101340.0,1.72813317]
[1733508466219,25.41086981,101350.0,101340.0,1.35655917]
[1733508466450,25.45866981,101350.0,101340.0,0.74349391]
[1733508466651,25.45866981,101350.0,101340.0,0.56468178]
[1733508466975,25.45866981,101350.0,101340.0,0.42968178]
[1733508467389,25.45866981,101350.0,101340.0,0.83819304]
[1733508467640,25.45866981,101350.0,101340.0,0.82919304]
[1733508467843,25.45866981,101350.0,101340.0,0.73071129]
[1733508468043,25.45866981,101350.0,101340.0,0.42968178]
[1733508468260,25.45866981,101350.0,101340.0,0.37968178]
[1733508468499,25.45866981,101350.0,101340.0,0.38141578]
[1733508468733,25.45866981,101350.0,101340.0,0.37241578]
[1733508469214,25.45866981,101350.0,101340.0,0.36341578]
[1733508469463,25.45866981,101350.0,101340.0,0.37241578]
[1733508469742,25.45866981,101350.0,101340.0,0.38141578]
[1733508469960,25.63589932,101350.0,101340.0,0.369072]
[1733508470395,25.63589932,101350.0,101340.0,0.360072]
[1733508470606,25.63589932,101350.0,101340.0,0.006]
[1733508470857,25.63589932,101350.0,101340.0,0.055338]
[1733508471559,25.63589932,101350.0,101340.0,0.05632457]
[1733508472024,25.68644332,101350.0,101340.0,0.20632457]
[1733508472282,25.68644332,101350.0,101340.0,0.205338]
[1733508472495,25.68644332,101350.0,101340.0,0.077238]
[1733508472716,25.68644332,101350.0,101330.0,0.369471]
[1733508472971,0.10002951,101340.0,101330.0,0.408943]
[1733508473182,0.10002951,101340.0,101330.0,0.378943]
[1733508473629,0.22272951,101340.0,101330.0,0.039472]
[1733508474066,0.22272951,101340.0,101330.0,0.009]
[1733508474317,0.22272951,101340.0,101330.0,0.039472]
[1733508474582,22.50214555,101350.0,101330.0,0.13950151]
[1733508474830,20.94735492,101350.0,101340.0,0.89198667]
[1733508475068,20.12607885,101350.0,101340.0,2.13754051]
[1733508475295,20.07825083,101350.0,101340.0,2.1419324]
[1733508475507,19.97958083,101350.0,101340.0,1.9389324]
[1733508475740,19.97958083,101350.0,101340.0,1.967381]
[1733508475952,19.98058083,101350.0,101340.0,1.991881]
[1733508476170,19.98058083,101350.0,101340.0,2.093381]
[1733508476389,19.94011283,101350.0,101340.0,2.093381]
[1733508476614,19.94011283,101350.0,101340.0,2.102381]
[1733508476874,19.94111283,101350.0,101340.0,2.102381]
[1733508477098,19.88291083,101350.0,101340.0,1.743963]
[1733508477477,19.78424083,101350.0,101340.0,0.966341]
[1733508477686,19.78424083,101350.0,101340.0,5.196468]
[1733508478037,19.78424083,101350.0,101340.0,3.545324]
[1733508478264,19.65614083,101350.0,101340.0,3.261741]
[1733508478499,19.47937083,101350.0,101340.0,4.21919418]
[1733508478760,18.00094375,101350.0,101340.0,5.09409041]
[1733508479244,17.99894375,101350.0,101340.0,5.17969041]
[1733508479482,17.92000775,101350.0,101340.0,5.18869041]
[1733508479735,16.46411273,101350.0,101340.0,5.19769041]
[1733508479995,16.46411273,101350.0,101340.0,5.05049593]
[1733508479996,16.0498955,101350.0,101340.0,5.05049593]
[1733508480231,16.0508955,101350.0,101340.0,5.06122993]